bitfinex-derivatives/quotes_ETHF0:USTF0_20250420
["timestamp","ask_amount","ask_price","bid_price","bid_amount"]
[1745115272431,4.13986501,1615.5,1615.4,12.59872989]
[1745115272632,4.13986501,1615.5,1615.4,12.59758104]
[1745115274236,2.4917,1615.6,1615.5,1.2381]
[1745115274435,2.4917,1615.6,1615.5,2.04970869]
[1745115274635,2.4917,1615.6,1615.5,5.25726052]
[1745115274837,2.4917,1615.6,1615.5,6.01815287]
[1745115275137,2.4917,1615.6,1615.5,8.24615287]
[1745115278437,2.4917,1615.6,1615.5,10.85746357]
[1745115279739,2.4917,1615.6,1615.5,10.85742107]
[1745115279922,3.72972,1615.6,1615.5,10.85742107]
[1745115280327,3.72972,1615.6,1615.5,10.85738847]
[1745115280928,2.4917,1615.6,1615.5,10.85738847]
[1745115282137,2.4917,1615.6,1615.5,10.04639235]
[1745115282439,2.4917,1615.6,1615.5,10.85735886]
[1745115283539,2.4917,1615.6,1615.5,10.85734787]
[1745115283742,2.4917,1615.6,1615.5,7.64954787]
[1745115283942,3.72972,1615.6,1615.5,10.85734792]
[1745115284243,3.72972,1615.6,1615.5,10.85734955]
[1745115286043,2.4917,1615.6,1615.5,10.85734955]
[1745115287144,3.72972,1615.6,1615.5,10.85734955]
[1745115287445,2.4917,1615.6,1615.5,10.85734955]
[1745115289140,2.4917,1615.6,1615.5,8.62934955]
[1745115289843,2.4917,1615.6,1615.5,8.6295244]
[1745115290146,2.4917,1615.6,1615.5,10.8575244]
[1745115293244,2.4917,1615.6,1615.5,10.85778419]
[1745115293746,2.4917,1615.6,1615.5,10.8578699]
[1745115295146,3.72972,1615.6,1615.5,10.8578699]
[1745115295335,2.4917,1615.6,1615.5,10.8578699]
[1745115295644,2.4917,1615.6,1615.5,10.85814421]
[1745115297247,2.4917,1615.6,1615.5,10.85859839]
[1745115297548,2.4917,1615.6,1615.5,10.85859932]
[1745115298047,3.72972,1615.6,1615.5,10.85859932]
[1745115299337,3.72972,1615.6,1615.5,10.04639235]
[1745115299554,3.72972,1615.6,1615.5,10.85919284]
[1745115299850,2.4917,1615.6,1615.5,10.85919284]
[1745115301146,2.4917,1615.6,1615.5,10.85926332]
[1745115301548,9.34387501,1615.7,1615.6,1.23802]
[1745115301749,10.99917501,1615.7,1615.6,2.81178332]
[1745115304440,10.99917501,1615.7,1615.6,2.81177998]
[1745115305750,5.79516501,1615.7,1615.6,2.81177998]
[1745115305952,7.03311501,1615.7,1615.6,4.50207998]
[1745115306335,5.79516501,1615.7,1615.6,4.50175184]
[1745115308158,5.79516501,1615.7,1615.6,3.68921235]
[1745115308344,5.79516501,1615.7,1615.6,4.5016741]
[1745115308546,5.79516501,1615.7,1615.6,4.50161688]
[1745115309056,1.6553,1615.7,1615.6,4.50161688]
[1745115309353,2.89325,1615.7,1615.6,4.50161688]
[1745115309856,2.89325,1615.7,1615.6,7.70941688]
[1745115310855,1.6553,1615.7,1615.6,7.70941688]
[1745115311052,5.86986501,1615.8,1615.7,1.23795]
[1745115311257,5.86986501,1615.8,1615.7,5.30085453]
[1745115311459,7.52656501,1615.8,1615.7,5.30085453]
[1745115311658,7.52656501,1615.8,1615.7,6.06174688]
[1745115311960,7.52656501,1615.8,1615.7,6.06269354]
[1745115312257,7.52656501,1615.8,1615.7,8.29069354]
[1745115312460,9.5889889,1615.8,1615.7,8.29069354]
[1745115315160,13.72925897,1615.8,1615.7,8.29069354]
[1745115316165,13.72925897,1615.8,1615.7,6.06269354]
[1745115317162,1.23795,1615.7,1615.6,3.2078]
[1745115317361,1.2381,1615.5,1615.4,10.29792]
[1745115317555,1.2381,1615.5,1615.4,11.10953142]
[1745115317954,3.6728,1615.5,1615.4,11.10953142]
[1745115318154,3.6728,1615.5,1615.4,13.33753142]
[1745115319660,3.6728,1615.5,1615.4,8.08]
[1745115322074,3.6728,1615.5,1615.4,2.228]
[1745115322379,1.23818,1615.4,1615.3,21.90037212]
[1745115322580,3.79888,1615.4,1615.3,2.04928006]
[1745115323578,3.79888,1615.4,1615.3,2.04916314]
[1745115324378,3.79888,1615.4,1615.3,2.04904796]
[1745115324580,3.79888,1615.4,1615.3,2.04904718]
[1745115325272,3.79888,1615.4,1615.3,1.23819]
[1745115326283,3.79888,1615.4,1615.3,2.04885301]
[1745115326484,3.79888,1615.4,1615.3,1.23819]
[1745115326685,3.79888,1615.4,1615.3,2.04883989]
[1745115327184,3.79888,1615.4,1615.3,1.23819]
[1745115327483,3.79888,1615.4,1615.3,2.0486717]
[1745115329384,3.79888,1615.4,1615.3,1.23819]
[1745115329569,3.79888,1615.4,1615.3,1.99161316]
[1745115332578,3.79888,1615.4,1615.3,1.23819]
[1745115333280,1.23825,1615.3,1615.2,7.53207]
[1745115333478,2.98695,1615.3,1615.2,8.28547393]
[1745115333881,1.7487,1615.3,1615.2,8.28547393]
[1745115334086,1.7487,1615.3,1615.2,10.03987393]
[1745115337282,2.98695,1615.3,1615.2,10.03987393]
[1745115337785,2.98695,1615.3,1615.2,6.83207393]
[1745115337986,2.98695,1615.3,1615.2,10.03987393]
[1745115338283,1.7487,1615.3,1615.2,10.03987393]
[1745115339677,1.7487,1615.3,1615.2,10.84990526]
[1745115339875,1.7487,1615.3,1615.2,10.03987393]
[1745115340079,1.7487,1615.3,1615.2,10.84991497]
[1745115340485,1.7487,1615.3,1615.2,10.03987393]
[1745115340685,2.98695,1615.3,1615.2,10.84997652]
[1745115343381,1.7487,1615.3,1615.2,10.84997652]
[1745115343785,1.7487,1615.3,1615.2,10.85092069]
[1745115344381,1.7487,1615.3,1615.2,10.85114819]
[1745115345294,6.16777195,1615.5,1615.4,1.23818]
[1745115345485,8.72557195,1615.5,1615.4,1.23818]
[1745115345888,7.48740195,1615.5,1615.3,2.4283]
[1745115346192,8.72556195,1615.5,1615.4,3.46618]
[1745115348493,8.72556195,1615.5,1615.4,2.98326611]
[1745115349994,8.72556195,1615.5,1615.4,4.22144611]
[1745115351892,8.72556195,1615.5,1615.4,2.98326611]
[1745115352299,8.72556195,1615.5,1615.4,4.22144611]
[1745115353106,5.85880195,1615.5,1615.4,8.24157241]
[1745115353305,5.85880195,1615.5,1615.4,9.92187241]
[1745115353604,5.85880195,1615.5,1615.4,9.92164716]
[1745115353995,5.85880195,1615.5,1615.4,10.72974716]
[1745115354199,5.85880195,1615.5,1615.4,9.91764611]
[1745115354398,5.85880195,1615.5,1615.4,10.72963848]
[1745115356595,7.09690195,1615.5,1615.4,10.72963848]
[1745115358411,2.9586,1615.5,1615.4,10.72963848]
[1745115358611,2.9586,1615.5,1615.4,10.72918323]
[1745115360501,2.9586,1615.5,1615.4,10.72910728]
[1745115363599,1.7205,1615.5,1615.4,10.72910728]
[1745115363796,1.7205,1615.5,1615.4,10.72923742]
[1745115364701,1.7205,1615.5,1615.4,7.52143742]
[1745115364903,1.7205,1615.5,1615.4,10.72923742]
[1745115365103,5.85880195,1615.5,1615.4,10.72923742]
[1745115365606,5.85880195,1615.5,1615.4,10.72927616]
[1745115367410,5.85880195,1615.5,1615.4,10.72923131]
[1745115368106,5.85880195,1615.5,1615.4,10.72922553]
[1745115368615,1.7205,1615.5,1615.4,10.72922553]
[1745115368807,14.30259085,1615.6,1615.5,1.2381]
[1745115369013,14.30259085,1615.6,1615.5,3.63767942]
[1745115369212,10.34059085,1615.6,1615.5,7.48994553]
[1745115370616,11.57861085,1615.6,1615.5,7.48994553]
[1745115370821,13.25911085,1615.6,1615.5,7.48994553]
[1745115371021,14.09311085,1615.6,1615.5,5.03294553]
[1745115371409,14.09311085,1615.6,1615.5,5.03275375]
[1745115371723,3.75252,1615.6,1615.5,5.03275375]
[1745115372220,2.5145,1615.6,1615.5,5.03275375]
[1745115372618,2.5145,1615.6,1615.5,7.44175375]
[1745115372923,1.6805,1615.6,1615.5,7.44175375]
[1745115373116,1.6805,1615.6,1615.5,6.63036611]
[1745115373320,1.6805,1615.6,1615.5,7.44162995]
[1745115374120,2.91852,1615.6,1615.5,7.44162995]
[1745115375016,2.91852,1615.6,1615.5,6.63036611]
[1745115375322,2.91852,1615.6,1615.5,6.61978302]
[1745115376119,2.91852,1615.6,1615.5,9.82758302]
[1745115377121,4.95490195,1615.7,1615.6,1.23802]
[1745115377322,7.92585195,1615.7,1615.6,2.85202]
[1745115377512,7.92585195,1615.7,1615.6,3.60728611]
[1745115379327,6.68790195,1615.7,1615.6,3.60728611]
[1745115379527,5.87130195,1615.7,1615.6,4.43498611]
[1745115379826,5.87130195,1615.7,1615.6,6.07600442]
[1745115380924,5.87130195,1615.7,1615.6,6.07607203]
[1745115382332,7.10925195,1615.7,1615.6,6.07607203]
[1745115383329,2.97095,1615.7,1615.6,6.07607203]
[1745115383521,1.733,1615.7,1615.6,6.07607203]
[1745115384633,1.733,1615.7,1615.6,6.07625523]
[1745115385930,1.733,1615.7,1615.6,9.28405523]
[1745115386437,1.733,1615.7,1615.6,9.28403076]
[1745115386732,1.733,1615.7,1615.6,6.07623076]
[1745115386934,1.733,1615.7,1615.6,9.28403076]
[1745115387235,1.733,1615.7,1615.6,9.28399179]
[1745115392139,1.733,1615.7,1615.6,9.28384314]
[1745115395034,2.97095,1615.7,1615.6,8.45434314]
[1745115395231,2.97095,1615.7,1615.6,6.01264314]
[1745115396127,7.10925195,1615.7,1615.6,6.01264314]
[1745115397829,7.10925195,1615.7,1615.6,2.80484314]
[1745115398230,7.10925195,1615.7,1615.6,1.56682314]
[1745115398434,7.10925195,1615.7,1615.6,0.75526611]
[1745115398636,1.2381,1615.5,1615.4,4.44596]
[1745115398835,5.1971,1615.5,1615.4,5.2584543]
[1745115399140,5.1971,1615.5,1615.4,7.4864543]
[1745115399345,7.5971,1615.5,1615.4,7.4864543]
[1745115399632,7.5971,1615.5,1615.4,8.24153631]
[1745115399838,7.5971,1615.5,1615.4,8.24122194]
[1745115401641,7.5971,1615.5,1615.4,8.24084652]
[1745115401939,7.5971,1615.5,1615.4,5.03304652]
[1745115403140,7.5971,1615.5,1615.4,4.22124201]
[1745115403841,11.73540195,1615.5,1615.4,4.22124201]
[1745115411345,9.70260195,1615.5,1615.4,4.22124201]
[1745115411539,9.70260195,1615.5,1615.4,7.46044201]
[1745115411843,9.70260195,1615.5,1615.4,8.27148025]
[1745115412343,4.13830195,1615.5,1615.4,8.27148025]
[1745115412844,4.13830195,1615.5,1615.4,13.27148025]
[1745115413045,4.13830195,1615.5,1615.4,13.27135217]
[1745115413345,4.13830195,1615.5,1615.4,13.70942702]
[1745115413544,4.13830195,1615.5,1615.4,8.70942702]
[1745115413847,4.13830195,1615.5,1615.4,8.70940595]
[1745115414548,4.13830195,1615.5,1615.4,8.2713336]
[1745115414736,4.13830195,1615.5,1615.4,8.70939475]
[1745115414939,5.87130195,1615.7,1615.6,1.23802]
[1745115415140,5.87130195,1615.7,1615.6,5.25669889]
[1745115415640,5.87130195,1615.7,1615.6,7.78748744]
[1745115415842,5.87130195,1615.7,1615.6,7.78748318]
[1745115416049,6.66500195,1615.7,1615.6,7.78748318]
[1745115416352,6.66500195,1615.7,1615.6,7.78747522]
[1745115416549,6.66500195,1615.7,1615.6,8.54255723]
[1745115416748,7.90295195,1615.7,1615.6,8.54255723]
[1745115417348,7.90295195,1615.7,1615.6,7.72615723]
[1745115418139,7.90295195,1615.7,1615.6,6.91530201]
[1745115418344,7.90295195,1615.7,1615.6,7.72610767]
[1745115419548,6.66500195,1615.7,1615.6,7.72610767]
[1745115419755,3.76465,1615.7,1615.6,7.72610767]
[1745115420045,2.5267,1615.7,1615.6,7.72610767]
[1745115420650,3.76465,1615.7,1615.6,7.72610767]
[1745115421451,2.5267,1615.7,1615.6,7.72610767]
[1745115421653,3.76465,1615.7,1615.6,7.72610767]
[1745115421852,2.5267,1615.7,1615.6,7.72610767]
[1745115422153,3.76465,1615.7,1615.6,6.01170767]
[1745115423155,2.5267,1615.7,1615.6,6.01170767]
[1745115423356,3.76465,1615.7,1615.6,6.01170767]
[1745115424961,2.5267,1615.7,1615.6,6.01170767]
[1745115425150,2.5267,1615.7,1615.6,6.01158418]
[1745115425555,2.5267,1615.7,1615.6,7.68148418]
[1745115425960,3.76465,1615.7,1615.6,7.68148418]
[1745115426960,3.76465,1615.7,1615.6,7.68143962]
[1745115427156,3.76465,1615.7,1615.6,4.47363962]
[1745115427365,3.76465,1615.7,1615.6,7.68143962]
[1745115428364,2.5267,1615.7,1615.6,7.68143962]
[1745115429267,2.5267,1615.7,1615.6,7.68142253]
[1745115429456,1.733,1615.7,1615.6,7.68142253]
[1745115429857,5.37624195,1615.8,1615.7,1.23795]
[1745115430161,5.37624195,1615.8,1615.7,6.86585]
[1745115430361,6.96994195,1615.8,1615.7,6.86585]
[1745115431169,6.96994195,1615.8,1615.7,4.63785]
[1745115431559,6.96994195,1615.8,1615.7,2.07175]
[1745115436768,1.23795,1615.7,1615.6,7.01156]
[1745115437067,3.74295,1615.7,1615.6,7.82261626]
[1745115437258,3.74295,1615.7,1615.6,8.57673816]
[1745115438173,2.505,1615.7,1615.6,8.57673816]
[1745115440176,3.74295,1615.7,1615.6,8.57751015]
[1745115440671,3.74295,1615.7,1615.6,7.7656819]
[1745115440872,3.74295,1615.7,1615.6,8.57752749]
[1745115441271,3.74295,1615.7,1615.6,0.7541219]
[1745115446170,1.23802,1615.6,1615.5,2.228]
[1745115446375,1.23802,1615.6,1615.2,11.49025785]
[1745115446376,1.23825,1615.3,1615.2,11.49025785]
[1745115446581,8.40405,1615.3,1615.2,8.28245785]
[1745115447075,15.06355,1615.3,1615.2,7.2447173]
[1745115447273,17.29155,1615.3,1615.2,7.2447173]
[1745115447579,1.23841,1615.1,1615.0,18.38853871]
[1745115447778,4.44621,1615.1,1615.0,1.27814812]
[1745115447972,1.23848,1615.0,1614.9,16.78797755]
[1745115448172,5.19648,1615.0,1614.9,8.82582135]
[1745115448379,16.86554972,1615.0,1614.9,2.21822135]
[1745115448681,1.23879,1614.6,1614.5,34.61831539]
[1745115448881,8.40459,1614.6,1614.5,34.61831539]
[1745115449181,8.40459,1614.6,1614.5,18.63939049]
[1745115449677,8.40459,1614.6,1614.5,20.33849049]
[1745115450881,9.27609,1614.6,1614.5,20.33849049]
[1745115451282,9.27609,1614.6,1614.5,22.56649049]
[1745115451584,3.959,1614.7,1614.6,1.23873]
[1745115451769,3.959,1614.7,1614.6,9.08123]
[1745115451971,3.959,1614.7,1614.6,7.8425]
[1745115452182,3.959,1614.7,1614.6,9.08129]
[1745115452374,3.959,1614.7,1614.6,9.91329]
[1745115454583,8.06484107,1614.7,1614.6,9.91329]
[1745115454781,4.10584107,1614.7,1614.6,9.91329]
[1745115458085,5.19756,1614.9,1614.8,1.23864]
[1745115458286,5.19756,1614.9,1614.8,7.42984]
[1745115458686,5.19756,1614.9,1614.8,7.888]
[1745115461089,3.959,1614.9,1614.8,12.33444]
[1745115461288,5.19641,1615.1,1615.0,1.23848]
[1745115461482,3.958,1615.1,1615.0,1.23848]
[1745115461683,3.958,1615.1,1615.0,7.42968]
[1745115461992,5.19641,1615.1,1615.0,10.83598]
[1745115462690,3.958,1615.1,1615.0,10.83598]
[1745115462893,3.958,1615.1,1615.0,14.04378]
[1745115463090,11.50290268,1615.3,1615.2,1.23833]
[1745115463091,14.22260268,1615.3,1615.2,1.23833]
[1745115463482,14.22260268,1615.3,1615.2,7.42953]
[1745115463693,14.22260268,1615.3,1615.2,9.05573]
[1745115465197,15.46085268,1615.3,1615.2,9.05573]
[1745115466387,5.19625,1615.3,1615.2,9.05573]
[1745115469497,5.19625,1615.3,1615.2,7.8174]
[1745115470803,5.19625,1615.3,1615.2,9.05573]
[1745115471798,5.19625,1615.3,1615.2,7.8174]
[1745115472003,8.40405,1615.3,1615.2,7.8174]
[1745115472504,5.19625,1615.3,1615.2,7.8174]
[1745115473002,5.19625,1615.3,1615.2,1.6262]
[1745115473205,15.63205,1615.3,1615.2,1.6262]
[1745115473903,10.63205,1615.3,1615.2,1.6262]
[1745115474401,8.40405,1615.3,1615.2,1.6262]
[1745115474603,5.19625,1615.3,1615.2,1.6262]
[1745115476102,5.19625,1615.3,1615.2,7.8174]
[1745115477105,7.42425,1615.3,1615.2,7.8174]
[1745115477408,7.42425,1615.3,1615.2,1.6262]
[1745115477798,7.42425,1615.3,1615.2,7.8174]
[1745115479208,5.19625,1615.3,1615.2,7.8174]
[1745115480210,5.19625,1615.3,1615.2,9.05573]
[1745115482111,5.19625,1615.3,1615.2,7.8174]
[1745115482499,5.19625,1615.3,1615.2,9.05573]
[1745115483015,5.19625,1615.3,1615.2,7.8174]
[1745115484111,7.42425,1615.3,1615.2,7.8174]
[1745115485204,5.19625,1615.3,1615.2,7.8174]
[1745115486114,7.42425,1615.3,1615.2,7.8174]
[1745115488211,5.19625,1615.3,1615.2,7.8174]
[1745115488819,9.30209107,1615.3,1615.2,7.8174]
[1745115492216,14.37282274,1615.3,1615.2,7.8174]
[1745115492423,14.37282274,1615.3,1615.2,1.6262]
[1745115492939,14.37282274,1615.3,1615.2,7.8174]
[1745115493119,12.14482274,1615.3,1615.2,7.8174]
[1745115494218,14.37282274,1615.3,1615.2,7.8174]
[1745115494426,14.37282274,1615.3,1615.2,6.1912]
[1745115495823,1.23833,1615.2,1615.1,1.6547]
[1745115496025,2.09093,1615.2,1615.1,1.6547]
[1745115496326,2.09093,1615.2,1615.1,7.8459]
[1745115498125,1.23833,1615.2,1615.1,7.8459]
[1745115498330,11.89413113,1615.3,1615.1,8.6981]
[1745115498627,11.89406113,1615.3,1615.2,9.08313]
[1745115499832,10.65581113,1615.3,1615.2,9.08313]
[1745115500330,11.89406113,1615.3,1615.2,9.08313]
[1745115500631,19.20056918,1615.3,1615.2,9.08313]
[1745115501128,19.20056918,1615.3,1615.2,11.31113]
[1745115501430,19.20056918,1615.3,1615.2,10.0728]
[1745115502142,19.20056918,1615.3,1615.2,7.8448]
[1745115503933,13.29256918,1615.3,1615.2,7.8448]
[1745115504634,14.08234754,1615.3,1615.2,7.8448]
[1745115506332,14.08234754,1615.3,1615.2,10.0728]
[1745115507135,14.08234754,1615.3,1615.2,11.31113]
[1745115507433,14.08234754,1615.3,1615.2,9.08313]
[1745115507933,14.08234754,1615.3,1615.2,7.8448]
[1745115510037,16.30516706,1615.3,1615.2,7.8448]
[1745115510634,24.51296706,1615.3,1615.2,1.6536]
[1745115511039,19.51296706,1615.3,1615.2,1.6536]
[1745115511335,21.74096706,1615.3,1615.2,1.6536]
[1745115513138,19.51296706,1615.3,1615.2,1.6536]
[1745115514148,21.74096706,1615.3,1615.2,1.6536]
[1745115514445,1.23841,1615.1,1615.0,0.8617]
[1745115514832,1.23841,1615.1,1615.0,8.29138]
[1745115515342,1.23839,1615.2,1615.0,10.51938]
[1745115515531,1.23839,1615.2,1615.1,7.0038]
[1745115517643,1.23839,1615.2,1615.1,8.7129]
[1745115520244,20.46535383,1615.2,1615.1,8.7129]
[1745115521040,24.42235383,1615.2,1615.1,9.95131]
[1745115522545,24.42235383,1615.2,1615.1,8.7129]
[1745115527840,16.32603465,1615.2,1615.1,9.95131]
[1745115531551,16.32603465,1615.2,1615.1,8.7129]
[1745115534049,16.32603465,1615.2,1615.1,7.9003]
[1745115534246,17.17793465,1615.2,1615.1,7.9003]
[1745115537356,17.17793465,1615.2,1615.1,8.7195]
[1745115539554,17.17793465,1615.2,1615.1,7.9003]
[1745115539754,18.83053465,1615.2,1615.1,7.9003]
[1745115540056,8.48966836,1615.2,1615.1,7.9003]
[1745115542957,5.98516836,1615.2,1615.1,7.9003]
[1745115543263,5.98516836,1615.2,1615.1,8.7]
[1745115543560,6.83006836,1615.2,1615.1,7.9003]
[1745115543750,8.48346836,1615.2,1615.1,7.9003]
[1745115544354,8.48346836,1615.2,1615.1,1.7091]
[1745115545057,1.23841,1615.1,1615.0,0.8617]
[1745115545253,1.23848,1615.0,1614.9,1.7324]
[1745115545449,2.08008,1615.0,1614.9,7.9236]
[1745115546265,2.08008,1615.0,1614.9,1.7324]
[1745115547172,2.08008,1615.0,1614.9,3.9604]
[1745115548267,2.86985836,1615.0,1614.9,3.9604]
[1745115548863,2.86985836,1615.0,1614.9,10.1516]
[1745115550967,8.77785836,1615.0,1614.9,10.1516]
[1745115551868,19.10810288,1615.0,1614.9,10.1516]
[1745115552463,19.10810288,1615.0,1614.9,7.9236]
[1745115554760,19.10810288,1615.0,1614.9,8.78]
[1745115555462,18.26650288,1615.0,1614.9,8.78]
[1745115556164,18.26650288,1615.0,1614.9,11.008]
[1745115556365,19.09270288,1615.0,1614.9,11.008]
[1745115556553,27.18902206,1615.0,1614.9,11.008]
[1745115556761,21.28102206,1615.0,1614.9,11.008]
[1745115560469,13.18470288,1615.0,1614.9,11.008]
[1745115561874,12.35850288,1615.0,1614.9,11.008]
[1745115562270,12.35850288,1615.0,1614.9,8.78]
[1745115563277,12.35850288,1615.0,1614.9,11.008]
[1745115564175,12.35850288,1615.0,1614.9,8.78]
[1745115565075,12.35850288,1615.0,1614.9,11.008]
[1745115566186,12.35850288,1615.0,1614.9,8.78]
[1745115567080,11.12002288,1615.0,1614.9,10.01856]
[1745115567281,11.12002288,1615.0,1614.9,12.24656]
[1745115567678,12.35850288,1615.0,1614.9,12.24656]
[1745115567980,12.35850288,1615.0,1614.9,11.008]
[1745115568278,12.35850288,1615.0,1614.9,8.78]
[1745115569178,12.35850288,1615.0,1614.9,11.008]
[1745115572286,10.28272507,1615.0,1614.9,11.008]
[1745115574081,10.28272507,1615.0,1614.9,8.78]
[1745115576482,14.24072507,1615.0,1614.9,8.78]
[1745115576880,5.98625836,1615.0,1614.9,8.78]
[1745115578170,5.98625836,1615.0,1614.9,11.008]
[1745115579090,5.98625836,1615.0,1614.9,8.78]
[1745115580981,15.52672452,1615.0,1614.9,8.78]
[1745115584190,15.52672452,1615.0,1614.9,11.008]
[1745115585385,15.07802288,1615.0,1614.9,13.0503376]
[1745115585782,15.07802288,1615.0,1614.9,13.05021616]
[1745115586284,16.31650288,1615.0,1614.9,13.05021616]
[1745115586985,16.31650288,1615.0,1614.9,12.24656]
[1745115587189,16.31650288,1615.0,1614.9,13.05008708]
[1745115588088,16.31650288,1615.0,1614.9,10.82208708]
[1745115590087,15.07802288,1615.0,1614.9,10.82208708]
[1745115590288,13.01072054,1615.0,1614.9,13.05008708]
[1745115590886,13.01072054,1615.0,1614.9,13.04985507]
[1745115592902,13.01072054,1615.0,1614.9,16.25765507]
[1745115593191,14.24920054,1615.0,1614.9,16.25765507]
[1745115593790,14.24920054,1615.0,1614.9,15.45436]
[1745115593990,14.24920054,1615.0,1614.9,16.25760037]
[1745115594196,14.24920054,1615.0,1614.9,13.22636]
[1745115594397,14.24920054,1615.0,1614.9,14.0296437]
[1745115594599,14.24920054,1615.0,1614.9,14.02962345]
[1745115595292,14.24920054,1615.0,1614.9,10.82182345]
[1745115595496,14.24920054,1615.0,1614.9,14.02962345]
[1745115596195,14.24920054,1615.0,1614.9,16.25762345]
[1745115596595,13.01072054,1615.0,1614.9,16.25762345]
[1745115596994,14.24920054,1615.0,1614.9,16.25762345]
[1745115597302,13.01072054,1615.0,1614.9,16.25762345]
[1745115597601,13.01072054,1615.0,1614.9,15.45436]
[1745115598399,13.01072054,1615.0,1614.9,14.02965561]
[1745115599500,13.01072054,1615.0,1614.9,14.02962525]
[1745115600197,9.05272054,1615.0,1614.9,14.02962525]
[1745115601593,10.29120054,1615.0,1614.9,14.02962525]
[1745115601801,9.05272054,1615.0,1614.9,14.02962525]
[1745115601999,10.29120054,1615.0,1614.9,14.02962525]
[1745115602596,10.29120054,1615.0,1614.9,14.02968229]
[1745115603604,10.29120054,1615.0,1614.9,11.1314]
[1745115603901,11.94460054,1615.0,1614.9,11.1314]
[1745115604103,11.94460054,1615.0,1614.9,12.36996]
[1745115604404,11.94460054,1615.0,1614.9,11.1314]
[1745115605600,11.94460054,1615.0,1614.9,9.399]
[1745115607004,14.01190288,1615.0,1614.9,9.399]
[1745115608307,14.01190288,1615.0,1614.9,11.627]
[1745115609606,12.35850288,1615.0,1614.9,13.2268]
[1745115610404,12.35850288,1615.0,1614.9,15.32376]
[1745115612207,12.35850288,1615.0,1614.9,13.09576]
[1745115612506,12.35850288,1615.0,1614.9,10.9988]
[1745115612906,14.01150288,1615.0,1614.9,10.9988]
[1745115613109,14.01150288,1615.0,1614.9,13.2268]
[1745115614112,12.35850288,1615.0,1614.9,13.2268]
[1745115614407,11.12002288,1615.0,1614.9,14.46536]
[1745115614614,11.12002288,1615.0,1614.9,15.33006]
[1745115615702,12.35850288,1615.0,1614.9,15.33006]
[1745115616210,12.35850288,1615.0,1614.9,16.13343947]
[1745115617410,11.12002288,1615.0,1614.9,16.13343947]
[1745115618007,12.35850288,1615.0,1614.9,16.13343947]
[1745115618206,11.12002288,1615.0,1614.9,13.90543947]
[1745115618917,12.35850288,1615.0,1614.9,13.90543947]
[1745115619217,10.28578484,1615.0,1614.9,16.13343947]
[1745115619518,10.28578484,1615.0,1614.9,16.13343704]
[1745115620018,9.04730484,1615.0,1614.9,16.13343185]
[1745115621405,9.04730484,1615.0,1614.9,15.33006]
[1745115621611,9.04730484,1615.0,1614.9,16.13342393]
[1745115623216,10.28578484,1615.0,1614.9,16.13342393]
[1745115623420,10.28578484,1615.0,1614.9,16.1334327]
[1745115623715,10.28578484,1615.0,1614.9,16.13343191]
[1745115623911,9.04730484,1615.0,1614.9,16.13343191]
[1745115625722,9.04730484,1615.0,1614.9,16.13341415]
[1745115627225,9.04730484,1615.0,1614.9,16.13340734]
[1745115628021,10.28578484,1615.0,1614.9,16.13340734]
[1745115628219,10.28578484,1615.0,1614.9,15.33006]
[1745115630426,11.13728484,1615.0,1614.9,15.33006]
[1745115630722,11.13728484,1615.0,1614.9,13.2268]
[1745115630920,12.75948484,1615.0,1614.9,13.2268]
[1745115631122,12.75948484,1615.0,1614.9,10.019]
[1745115631323,17.75948484,1615.0,1614.9,8.4192]
[1745115631525,12.75948484,1615.0,1614.9,8.4192]
[1745115632018,15.96728484,1615.0,1614.9,8.4192]
[1745115632214,15.96728484,1615.0,1614.9,6.1912]
[1745115633030,21.87528484,1615.0,1614.9,6.1912]
[1745115633225,21.87528484,1615.0,1614.9,7.8666]
[1745115633731,13.61775836,1615.0,1614.9,7.8666]
[1745115634130,13.61775836,1615.0,1614.9,10.0946]
[1745115634626,13.61775836,1615.0,1614.9,8.4192]
[1745115635436,13.61775836,1615.0,1614.9,10.0967]
[1745115637331,13.61775836,1615.0,1614.9,3.9055]
[1745115638929,13.61775836,1615.0,1614.9,4.7458]
[1745115639133,10.40995836,1615.0,1614.9,4.7458]
[1745115639331,13.61775836,1615.0,1614.9,4.7458]
[1745115640232,21.71407754,1615.0,1614.9,4.7458]
[1745115641530,18.50627754,1615.0,1614.9,4.7458]
[1745115641732,18.50627754,1615.0,1614.9,10.937]
[1745115643136,18.50627754,1615.0,1614.9,12.17556]
[1745115643337,18.50627754,1615.0,1614.9,10.937]
[1745115643536,28.81256035,1615.0,1614.9,10.937]
[1745115644438,27.19036035,1615.0,1614.9,12.17556]
[1745115644638,27.19036035,1615.0,1614.9,13.05106]
[1745115644858,20.43086035,1615.0,1614.9,13.05106]
[1745115646649,19.19238035,1615.0,1614.9,13.05106]
[1745115647352,20.43086035,1615.0,1614.9,13.05106]
[1745115653161,20.43086035,1615.0,1614.9,10.82306]
[1745115653859,20.43086035,1615.0,1614.9,9.5845]
[1745115654358,20.43086035,1615.0,1614.9,10.82306]
[1745115654951,20.43086035,1615.0,1614.9,9.5845]
[1745115655651,21.23326035,1615.0,1614.9,9.5845]
[1745115656754,2.83065836,1615.0,1614.9,9.5845]
[1745115657052,2.83065836,1615.0,1614.9,10.82306]
[1745115657453,2.02825836,1615.0,1614.9,10.82306]
[1745115657963,2.02825836,1615.0,1614.9,9.5845]
[1745115659073,2.02825836,1615.0,1614.9,10.82306]
[1745115660666,12.33454117,1615.0,1614.9,10.82306]
[1745115665760,12.33454117,1615.0,1614.9,9.5845]
[1745115665969,13.16704117,1615.0,1614.9,9.5845]
[1745115667671,13.16704117,1615.0,1614.9,10.82306]
[1745115667866,13.16704117,1615.0,1614.9,9.5845]
[1745115668768,13.16704117,1615.0,1614.9,10.82306]
[1745115669365,13.16704117,1615.0,1614.9,9.5845]
[1745115669565,13.16704117,1615.0,1614.9,10.82306]
[1745115669971,12.33454117,1615.0,1614.9,10.82306]
[1745115670775,12.33454117,1615.0,1614.9,9.5845]
[1745115672475,12.33454117,1615.0,1614.9,8.709]
[1745115672773,13.98734117,1615.0,1614.9,8.709]
[1745115673072,12.33454117,1615.0,1614.9,8.709]
[1745115676378,12.33454117,1615.0,1614.9,9.5701]
[1745115679077,16.28954117,1615.0,1614.9,9.5701]
[1745115679280,5.98325836,1615.0,1614.9,3.3789]
[1745115679473,5.98325836,1615.0,1614.9,9.5701]